bitfinex-derivatives/quotes_ETHF0:USTF0_20220106
["timestamp","ask_amount","ask_price","bid_price","bid_amount"]
[1641434200200,2.00479,3517.2,3517.1,0.5847]
[1641434200402,2.234781,3517.2,3517.1,0.5847]
[1641434200602,2.00479,3517.2,3517.1,0.5847]
[1641434200902,2.00479,3517.9,3517.1,14.2547]
[1641434201101,0.92824472,3518.2,3517.1,14.2547]
[1641434202200,2.73635369,3518.5,3517.1,14.2547]
[1641434202402,1.23635369,3518.5,3517.1,15.19904796]
[1641434202600,0.60301166,3517.8,3517.7,1.5]
[1641434202801,2.42469973,3517.8,3517.7,12.17]
[1641434203401,2.42469973,3517.8,3517.7,12.302394]
[1641434204002,2.42469973,3517.8,3517.7,1.55272144]
[1641434204202,2.42469973,3517.8,3517.6,2.00479]
[1641434204203,2.65469073,3517.8,3517.6,2.00479]
[1641434204804,2.05167907,3517.8,3517.7,1.1912464]
[1641434205004,0.229991,3517.8,3517.7,1.1912464]
[1641434205203,0.229991,3517.8,3517.7,2.3761716]
[1641434206005,2.00479,3518.0,3517.7,3.7966322]
[1641434206306,2.00479,3518.0,3517.7,3.2780858]
[1641434206307,0.60301166,3517.8,3517.7,3.2780858]
[1641434207108,0.60301166,3517.8,3517.7,3.4104798]
[1641434207405,0.60301166,3517.8,3517.7,1.9900192]
[1641434207605,0.60301166,3517.8,3517.7,1.3173192]
[1641434207807,0.60301166,3517.8,3517.7,2.73765471]
[1641434208005,3.82647807,3518.0,3517.7,2.73765471]
[1641434208006,0.60301166,3517.9,3517.7,1.3173192]
[1641434210109,0.60301166,3517.9,3517.7,14.43166716]
[1641434210909,0.60301166,3517.9,3517.7,15.14286716]
[1641434211510,0.60301166,3517.9,3517.8,13.37317198]
[1641434212313,2.00479,3518.0,3517.8,12.42882402]
[1641434212510,2.00479,3518.0,3517.9,0.132394]
[1641434212910,2.00479,3518.4,3517.9,0.132394]
[1641434213110,2.00479,3518.4,3518.3,1.42025482]
[1641434213311,2.00479,3518.4,3518.3,1.55264882]
[1641434213512,2.00479,3518.4,3518.3,13.72264882]
[1641434215013,0.80401555,3518.7,3518.3,13.72264882]
[1641434215215,0.80401555,3518.7,3518.3,12.302394]
[1641434215614,1.82168807,3518.9,3518.3,12.302394]
[1641434216014,1.82168807,3518.9,3518.4,0.86608291]
[1641434216214,1.82168807,3518.9,3518.4,13.03608291]
[1641434216414,1.82168807,3518.9,3518.5,0.132394]
[1641434217016,1.82168807,3518.9,3518.7,0.96354295]
[1641434217217,2.00479,3519.2,3518.7,0.96354295]
[1641434217816,2.00479,3519.2,3518.8,0.132394]
[1641434218217,2.00479,3519.2,3518.8,1.42005314]
[1641434218619,1.26827347,3518.8,3518.7,0.96354295]
[1641434218916,1.26827347,3518.8,3518.4,2.12530021]
[1641434218917,2.99826447,3518.8,3518.4,2.12530021]
[1641434219117,1.5,3518.5,3518.4,2.12530021]
[1641434219516,3.50479,3519.2,3518.4,2.12530021]
[1641434219716,2.00479,3519.2,3518.4,2.12530021]
[1641434219920,2.27711008,3519.0,3518.4,0.86608291]
[1641434220216,2.27711008,3519.0,3518.5,0.132394]
[1641434220416,2.27711008,3519.0,3518.9,1.41986361]
[1641434220617,2.27711008,3519.0,3518.9,2.20545761]
[1641434222018,1.90420557,3519.4,3518.9,2.20545761]
[1641434222422,1.90420557,3519.4,3519.0,1.01645248]
[1641434223022,1.90420557,3519.3,3519.0,1.01645248]
[1641434223221,0.229991,3519.2,3519.0,1.01645248]
[1641434223622,0.229991,3519.2,3519.1,2.66444927]
[1641434223821,1.90420557,3519.3,3519.1,2.66444927]
[1641434224022,1.90420557,3519.3,3519.1,1.24453324]
[1641434224023,0.229991,3519.3,3519.1,1.24453324]
[1641434227028,0.229991,3519.3,3519.1,1.37692724]
[1641434227931,1.90420557,3519.6,3519.2,13.67]
[1641434228135,3.08112563,3519.9,3519.5,13.67]
[1641434228332,3.08112563,3519.9,3519.5,12.17]
[1641434228731,0.80401555,3519.9,3519.6,0.132394]
[1641434228932,0.80401555,3519.9,3519.7,12.17]
[1641434229132,0.80401555,3519.9,3519.8,1.4195653]
[1641434229432,0.80401555,3519.9,3519.8,13.5895653]
[1641434229832,0.80401555,3519.9,3519.8,13.1172556]
[1641434230031,0.80401555,3519.9,3519.8,14.6172556]
[1641434230234,1.555e-05,3519.9,3519.8,13.1172556]
[1641434230632,1.555e-05,3519.9,3519.8,14.53656704]
[1641434231232,4.28190008,3520.8,3519.8,14.53656704]
[1641434232532,4.28190008,3520.8,3520.7,1.41929129]
[1641434232735,1.555e-05,3521.0,3520.7,1.41929129]
[1641434233033,7.43055817,3521.1,3520.7,1.41929129]
[1641434233232,4.39441139,3521.1,3520.8,0.132394]
[1641434233433,3.03614678,3521.3,3520.8,0.132394]
[1641434233832,3.03614678,3521.3,3520.9,1.09121162]
[1641434234133,1.5,3521.4,3520.9,1.09121162]
[1641434234533,2.00479,3521.5,3520.9,1.09121162]
[1641434235134,3.89378889,3521.7,3521.1,1.5]
[1641434235338,3.89378889,3521.7,3521.0,1.5]
[1641434235533,3.89378889,3521.7,3521.0,2.91915835]
[1641434235734,4.0184119,3521.9,3521.1,0.132394]
[1641434235935,4.0184119,3522.0,3521.1,0.132394]
[1641434236835,4.0184119,3522.0,3521.6,2.00479]
[1641434237035,4.0184119,3522.0,3521.8,1.5]
[1641434237236,32.4745,3522.4,3521.8,2.0163]
[1641434237436,4.93327401,3523.1,3521.9,0.132394]
[1641434237635,4.38263807,3522.7,3522.2,1.5]
[1641434237838,4.93327401,3523.2,3522.6,1.5]
[1641434238037,4.93327401,3523.2,3522.7,0.132394]
[1641434238436,37.0414526,3523.8,3523.1,1.5]
[1641434238635,37.0414526,3523.8,3522.6,0.7734]
[1641434238636,5.4796526,3523.8,3523.2,1.632394]
[1641434238836,5.4796526,3523.8,3523.7,5.50958]
[1641434239042,7.91028103,3524.8,3523.7,6.18328]
[1641434239236,7.91028103,3524.8,3523.8,0.132394]
[1641434240036,5.98030284,3524.9,3523.9,0.79962448]
[1641434240235,5.98030284,3524.9,3523.7,5.10434253]
[1641434240439,5.98030284,3524.9,3523.7,3.68625884]
[1641434240737,5.98030284,3524.9,3523.8,1.5]
[1641434241036,5.98030284,3524.9,3524.4,2.00479]
[1641434241237,2.00479,3525.1,3524.4,2.00479]
[1641434241438,2.00479,3525.1,3523.7,2.42585052]
[1641434241638,2.00479,3525.1,3523.7,1.00776884]
[1641434242040,2.00479,3525.1,3523.7,2.41733741]
[1641434243042,2.00479,3525.1,3523.7,4.42212741]
[1641434244240,30.5877,3525.4,3523.9,1.41800526]
[1641434244439,2.00479,3525.5,3523.9,2.10020526]
[1641434244640,2.00479,3525.5,3523.9,0.6822]
[1641434245041,2.00479,3525.5,3525.0,2.00479]
[1641434245440,2.00479,3525.5,3525.0,9e-05]
[1641434246040,2.00479,3525.5,3525.0,0.132484]
[1641434246241,2.00479,3525.5,3525.1,1.12639503]
[1641434246442,2.00479,3525.5,3524.7,2.74079]
[1641434246741,2.00479,3525.5,3524.8,0.132394]
[1641434246942,2.00479,3525.5,3525.4,1.5]
[1641434247141,2.00479,3526.2,3525.4,1.632394]
[1641434247341,2.00479,3526.2,3525.4,0.132394]
[1641434248547,0.132394,3526.1,3525.4,0.132394]
[1641434248948,2.00479,3525.7,3524.7,0.69540768]
[1641434249349,2.00479,3525.7,3524.9,1.5]
[1641434249548,0.132394,3525.6,3524.4,1.41778412]
[1641434249949,0.132394,3525.6,3524.5,1.41776201]
[1641434250551,0.132394,3525.6,3524.6,0.8129426]
[1641434251254,12.302394,3525.6,3524.6,0.8129426]
[1641434251450,12.302394,3525.6,3524.6,4.26e-05]
[1641434251652,12.17,3525.4,3524.6,4.26e-05]
[1641434251850,0.132394,3525.3,3524.6,4.26e-05]
[1641434253051,4.00958,3524.7,3524.6,4.26e-05]
[1641434253251,4.371965,3524.7,3524.6,4.26e-05]
[1641434254855,5.871965,3524.7,3523.5,2.00479]
[1641434255054,1.5,3523.8,3522.1,0.5948]
[1641434255255,1.5,3523.8,3521.6,31.4268]
[1641434255456,1.5,3523.8,3521.6,43.5968]
[1641434255655,2.00479,3523.9,3521.8,12.17]
[1641434256060,2.00479,3523.9,3522.1,12.17]
[1641434256255,2.00479,3523.9,3522.0,1.5]
[1641434256256,2.00479,3524.7,3522.7,1.5]
[1641434256458,2.00479,3524.7,3522.8,12.17]
[1641434256861,2.00479,3524.7,3523.0,12.17]
[1641434257058,2.00479,3524.7,3523.7,2.00479]
[1641434257459,0.33090867,3523.8,3523.7,2.00479]
[1641434257659,0.56089967,3523.8,3523.7,3.2640073]
[1641434257859,0.56089967,3523.8,3523.7,1.2592173]
[1641434258059,0.56089967,3523.8,3523.7,2.19550592]
[1641434258661,0.56089967,3523.8,3523.7,2.79737177]
[1641434258861,0.56089967,3523.8,3523.7,1.53815447]
[1641434260364,0.56089967,3523.8,3523.7,2.79737177]
[1641434260565,0.33090867,3523.8,3523.7,2.79737177]
[1641434261366,0.56089967,3523.8,3523.7,2.79737177]
[1641434261564,0.56089967,3523.8,3523.7,1.53815447]
[1641434261565,0.33090867,3523.8,3523.7,1.53815447]
[1641434262567,0.56089967,3523.8,3523.7,1.53815447]
[1641434262767,0.33090867,3523.8,3523.7,1.53815447]
[1641434263771,2.00479,3524.0,3523.7,1.53815447]
[1641434263772,0.33090867,3523.9,3523.7,1.53815447]
[1641434263970,0.56089967,3523.9,3523.7,1.53815447]
[1641434264169,0.33090867,3523.9,3523.7,1.53815447]
[1641434264971,2.00479,3524.0,3523.8,0.60186585]
[1641434265572,2.00479,3524.0,3523.9,0.132394]
[1641434265769,2.00479,3524.0,3523.9,0.818994]
[1641434266171,2.234781,3524.0,3523.9,0.818994]
[1641434266373,2.234781,3524.0,3523.9,0.6866]
[1641434266670,2.234781,3524.0,3523.9,1.9458173]
[1641434267471,2.00479,3524.0,3523.9,1.9458173]
[1641434267672,2.00479,3524.0,3523.9,1.28846585]
[1641434268878,2.00479,3524.0,3523.9,2.54768315]
[1641434269679,2.234781,3524.0,3523.9,1.9458173]
[1641434269878,2.00479,3524.0,3523.9,1.9458173]
[1641434270078,2.00479,3524.0,3523.9,0.6866]
[1641434272082,2.234781,3524.0,3523.9,0.6866]
[1641434272283,1.5,3524.6,3523.9,0.6866]
[1641434272583,1.5,3524.6,3524.0,0.132394]
[1641434273585,1.632394,3524.6,3524.0,0.132394]
[1641434273786,2.59028327,3524.6,3524.0,0.132394]
[1641434275186,2.00479,3524.1,3524.0,0.132394]
[1641434278588,0.95788927,3524.6,3524.0,0.132394]
[1641434278788,0.95788927,3524.7,3524.0,0.132394]
[1641434279189,0.95788927,3524.7,3524.3,2.00479]
[1641434279389,0.95788927,3524.7,3524.4,0.132394]
[1641434279588,0.95788927,3524.7,3524.5,0.93038288]
[1641434279989,2.96267927,3525.1,3524.5,0.93038288]
[1641434280192,2.96267927,3525.1,3524.6,0.132394]
[1641434281391,2.00479,3525.1,3524.6,0.132394]
[1641434282891,2.00479,3525.1,3524.6,1.09106785]
[1641434283293,1.5,3524.8,3524.6,0.95867385]
[1641434283493,1.729991,3524.7,3524.6,0.95867385]
[1641434283694,0.229991,3524.7,3524.6,0.95867385]
[1641434284896,0.229991,3524.7,3524.5,0.93038288]
[1641434285295,2.137184,3524.6,3524.5,0.93038288]
[1641434287897,3.637184,3524.6,3523.8,0.95867385]
[1641434288098,1.5,3524.3,3523.9,0.7646868]
[1641434288299,0.132394,3524.2,3523.9,0.7646868]
[1641434288499,0.229991,3524.1,3523.9,0.7646868]
[1641434288900,0.132394,3524.0,3523.9,0.7646868]
[1641434289498,2.137184,3524.0,3523.9,0.7646868]
[1641434294904,2.00479,3524.0,3523.9,0.7646868]
[1641434295504,2.234781,3524.0,3523.9,0.7646868]
[1641434295803,2.00479,3524.0,3523.9,0.7646868]
[1641434296404,2.234781,3524.0,3523.9,0.7646868]
[1641434296805,2.00479,3524.0,3523.9,0.7646868]
[1641434297603,2.234781,3524.0,3523.9,0.7646868]
[1641434298005,2.00479,3524.0,3523.9,0.7646868]
[1641434298206,2.234781,3524.0,3523.9,0.7646868]
[1641434298606,2.00479,3524.0,3523.9,0.7646868]
[1641434299106,2.234781,3524.0,3523.9,0.7646868]
[1641434299309,2.00479,3524.0,3523.9,0.7646868]
[1641434299507,0.95788927,3524.5,3523.9,0.7646868]
[1641434299707,0.95788927,3524.5,3524.0,0.132394]
[1641434300308,0.95788927,3524.4,3524.0,0.132394]
[1641434301810,0.95788927,3524.3,3524.2,1.56943434]
[1641434302207,0.95788927,3524.3,3524.2,1.70182834]
[1641434302609,0.95788927,3524.3,3524.2,3.11959839]
[1641434303010,0.95788927,3524.5,3524.2,0.132394]
[1641434304717,2.96267927,3524.6,3524.3,0.60169133]
[1641434304912,2.96267927,3524.6,3524.4,0.132394]
[1641434305115,0.229991,3524.5,3524.3,2.52950397]
[1641434305516,0.229991,3524.5,3524.3,2.66189797]
[1641434305716,0.229991,3524.5,3524.3,1.92781264]
[1641434305915,0.57190478,3524.5,3524.3,1.59683408]
[1641434306216,0.57190478,3524.5,3524.4,1.29010688]
[1641434307417,0.362385,3524.5,3524.4,1.29010688]
[1641434307615,0.229991,3524.5,3524.4,1.29010688]
[1641434308014,2.00479,3524.6,3524.4,1.42250088]
[1641434310216,0.229991,3524.5,3524.4,1.42250088]
[1641434310416,2.00479,3524.6,3524.4,1.42250088]
[1641434311919,2.234781,3524.6,3524.4,1.42250088]
[1641434312116,2.00479,3524.6,3524.4,1.42250088]
[1641434312518,2.00479,3524.6,3524.4,2.70053862]
[1641434315019,0.229991,3524.5,3524.4,2.70053862]
[1641434315317,2.00479,3524.6,3524.4,2.70053862]
[1641434315918,0.229991,3524.5,3524.4,2.70053862]
[1641434316317,2.00479,3524.6,3524.4,2.70053862]
[1641434317017,0.229991,3524.5,3524.4,2.70053862]
[1641434317219,2.00479,3524.6,3524.4,2.70053862]
[1641434317718,2.00479,3524.6,3524.5,1.27803774]
[1641434318618,2.234781,3524.6,3524.5,1.27803774]
[1641434318818,2.234781,3524.6,3524.4,2.70053862]
[1641434320222,0.132394,3524.5,3524.4,1.29010688]
[1641434323026,0.47435018,3524.5,3524.4,1.89184276]
[1641434323227,0.34195618,3524.5,3524.4,1.89184276]
[1641434328433,0.96254965,3524.5,3524.4,3.48867684]
[1641434329636,0.96254965,3524.5,3524.4,1.89184276]
[1641434330038,0.96254965,3524.7,3524.4,3.8196554]
[1641434330435,0.96254965,3524.7,3524.5,0.132394]
[1641434330636,0.96254965,3524.7,3524.5,0.750594]
[1641434331039,2.65274192,3525.5,3524.7,12.17]
[1641434331237,2.65274192,3525.5,3524.9,13.67]
[1641434331438,1.85037369,3525.4,3524.9,13.67]
[1641434331637,1.85037369,3525.4,3525.2,2.00479]
[1641434331837,0.80236823,3525.5,3525.2,2.00479]
[1641434331838,0.80236823,3525.5,3525.3,15.21972197]
[1641434332037,0.80236823,3525.5,3525.4,1.03452812]
[1641434332237,0.80236823,3525.5,3525.4,2.45177976]
[1641434332642,3.08396021,3525.9,3525.4,13.33692212]
[1641434332838,3.08396021,3525.9,3525.7,12.17]
[1641434333039,3.08396021,3525.9,3525.7,14.38967933]
[1641434333238,3.08396021,3525.9,3525.8,0.132394]
[1641434333539,2.00479,3526.7,3525.8,14.307184]
[1641434334341,2.00479,3526.7,3525.8,2.137184]
[1641434336939,2.00479,3526.7,3525.8,14.307184]
[1641434337144,2.00479,3527.1,3526.0,13.67]
[1641434337342,2.00479,3527.1,3526.3,12.17]
[1641434337540,2.00479,3527.1,3526.5,2.00479]
[1641434337744,2.00479,3527.1,3526.5,2.58369]
[1641434338143,2.00479,3527.1,3526.6,0.94419151]
[1641434339350,2.137184,3527.1,3526.6,0.81179751]
[1641434339544,2.00479,3526.7,3526.6,0.81179751]
[1641434342655,1.9120887,3528.3,3526.6,0.81179751]
[1641434343454,1.9120887,3528.2,3526.6,0.81179751]
[1641434343654,1.9120887,3528.2,3527.1,2.00479]
[1641434343854,1.5,3527.2,3525.2,1.5]
[1641434344055,1.5,3527.3,3525.1,31.616]
[1641434344256,1.5,3527.3,3525.8,1.41713916]
[1641434344554,1.5,3527.3,3525.1,31.616]
[1641434344555,2.91723758,3527.5,3525.5,1.41723758]
[1641434344755,1.41723758,3527.5,3525.9,1.0244206]
[1641434345560,2.00479,3526.9,3526.1,2.00479]
[1641434345857,2.00479,3526.9,3526.2,0.132394]
[1641434346459,0.132394,3526.8,3526.2,0.132394]
[1641434347460,0.132394,3526.8,3526.1,2.00479]
[1641434348460,0.132394,3526.8,3526.1,2.137184]
[1641434351866,2.00479,3526.9,3526.1,3.55419665]
[1641434352066,0.132394,3526.7,3526.1,0.132394]
[1641434353466,0.132394,3526.7,3525.9,1.0244206]
[1641434353668,2.00479,3526.3,3525.9,1.0244206]
[1641434354267,0.132394,3526.2,3525.9,1.0244206]
[1641434356269,0.229991,3526.1,3525.9,1.0244206]
[1641434356470,0.132394,3526.1,3525.9,1.0244206]
[1641434356869,1.632394,3526.1,3525.9,1.0244206]
[1641434357070,0.132394,3526.1,3525.9,1.0244206]
[1641434357269,0.229991,3526.0,3525.7,0.95000105]
[1641434357470,0.132394,3525.9,3525.4,1.26496333]
[1641434357672,4.00958,3525.5,3525.4,1.26496333]
[1641434358071,4.239571,3525.5,3525.4,2.0047834]
[1641434358276,4.239571,3525.5,3525.4,0.73982007]
[1641434358672,4.00958,3525.5,3525.4,0.73982007]
[1641434359071,4.239571,3525.5,3525.4,0.73982007]
[1641434359271,4.00958,3525.5,3525.4,0.73982007]
[1641434359872,4.00958,3525.5,3525.4,1.34133567]
[1641434360072,4.371965,3525.5,3525.4,1.34133567]
[1641434360278,4.00958,3525.5,3525.4,1.34133567]
[1641434360475,2.00479,3525.5,3525.4,1.34133567]
[1641434360675,1.27466626,3525.8,3525.4,1.34133567]
[1641434360878,1.27466626,3525.8,3525.4,1.47372967]
[1641434361076,1.27466626,3525.7,3525.4,1.47372967]
[1641434361676,0.229991,3525.6,3525.4,1.34133567]
[1641434362276,1.27466626,3525.7,3525.4,1.34133567]
[1641434362477,1.27466626,3525.7,3525.4,0.6015156]
[1641434362877,1.27466626,3525.7,3525.4,0.7339096]
[1641434363076,1.27466626,3525.7,3525.5,0.6015156]
[1641434363380,2.2535587,3526.1,3525.6,2.02983899]
[1641434364075,2.00479,3526.1,3525.6,2.02983899]
[1641434364277,2.00479,3526.1,3526.0,1.5994853]
[1641434364476,1.27466626,3526.3,3526.0,1.7318793]
[1641434365476,1.27466626,3526.3,3526.1,1.11859968]
[1641434365676,1.27466626,3526.3,3526.1,3.12338968]
[1641434365879,1.27466626,3526.3,3526.2,0.132394]
[1641434366278,2.00479,3526.9,3526.2,0.132394]
[1641434366279,1.27466626,3526.7,3526.2,0.132394]
[1641434367277,1.52332672,3526.7,3526.4,1.59923989]
[1641434367478,0.229991,3526.6,3526.4,1.59923989]
[1641434368686,0.229991,3526.6,3526.3,2.20075549]
[1641434369986,0.229991,3526.6,3526.3,2.33314949]
[1641434370587,1.52332672,3526.5,3526.3,0.6015156]
[1641434370786,0.229991,3526.4,3526.3,0.6015156]
[1641434371187,1.52332672,3526.5,3526.3,0.6015156]
[1641434371887,0.24866046,3526.4,3526.3,0.132394]
[1641434372888,0.24866046,3526.4,3526.3,0.7339096]
[1641434374990,1.27466626,3526.5,3526.3,2.33314949]
[1641434375189,0.229991,3526.4,3526.3,2.33314949]
[1641434375690,1.27466626,3526.5,3526.3,2.33314949]
[1641434376093,0.47865146,3526.4,3526.3,2.33314949]
[1641434376291,0.24866046,3526.4,3526.3,2.33314949]
[1641434377091,0.47865146,3526.4,3526.3,2.33314949]
[1641434377392,0.47865146,3526.4,3526.0,1.89744499]
[1641434377393,1.862385,3526.4,3526.0,1.89744499]
[1641434377591,1.862385,3526.4,3525.5,3.16240832]
[1641434377592,1.5,3526.1,3525.5,3.16240832]
[1641434377792,0.132394,3526.0,3525.4,1.58809356]
[1641434378894,0.132394,3526.0,3525.4,0.132394]
[1641434379094,0.132394,3526.0,3525.3,2.8068108]
[1641434379395,0.132394,3526.0,3525.4,1.11858792]
[1641434379894,2.00479,3525.8,3525.4,1.11858792]
[1641434380095,0.132394,3525.7,3525.4,1.11858792]
[1641434380295,2.00479,3525.8,3525.5,0.132394]
[1641434381096,0.229991,3525.7,3525.4,1.11858792]
[1641434381299,0.132394,3525.6,3525.4,1.11858792]
[1641434382099,0.229991,3525.5,3525.4,1.11858792]
[1641434382298,0.132394,3525.6,3525.4,1.11858792]
[1641434383101,0.229991,3525.5,3525.4,1.11858792]
[1641434383400,0.132394,3525.6,3525.4,1.11858792]
[1641434383803,2.00479,3525.8,3525.4,1.11858792]
[1641434384203,2.00479,3525.8,3525.4,1.25098192]
[1641434386605,2.00479,3525.8,3525.5,0.95395238]
[1641434387005,2.00479,3525.8,3525.6,0.132394]
[1641434388005,2.00479,3526.2,3525.6,0.132394]
[1641434388205,2.00479,3526.2,3525.7,0.95395238]
[1641434388406,2.00479,3526.2,3525.8,0.132394]
[1641434389408,2.00479,3526.2,3525.9,0.95395238]
[1641434389609,2.00479,3526.2,3526.0,1.30258242]
[1641434390107,2.00479,3526.6,3526.0,1.30258242]
[1641434391911,0.95664078,3526.3,3526.2,1.59067513]
[1641434392109,0.95664078,3526.3,3526.2,1.72306913]
[1641434392310,1.18663178,3526.3,3526.2,1.72306913]
[1641434392508,0.95664078,3526.3,3526.2,1.72306913]
[1641434393008,0.95664078,3526.3,3526.2,0.132394]
[1641434393408,1.18663178,3526.3,3526.2,0.132394]
[1641434393608,1.18663178,3526.3,3526.0,3.07967544]
[1641434394010,2.00479,3526.1,3526.0,3.07967544]
[1641434394411,2.234781,3526.1,3526.0,3.07967544]
[1641434394610,2.367175,3526.1,3526.0,3.07967544]
[1641434396616,2.367175,3526.1,3526.0,1.90948702]
[1641434396817,2.367175,3526.1,3525.5,3.96416808]
[1641434396818,3.64184126,3526.1,3525.8,1.59908402]
[1641434397415,1.5,3525.9,3525.8,8.402e-05]
[1641434397615,1.862385,3525.9,3525.8,8.402e-05]
[1641434398017,0.362385,3525.9,3525.5,8.402e-05]
[1641434398215,15.67479,3525.6,3525.5,8.402e-05]
[1641434398415,16.037175,3525.6,3525.5,8.402e-05]
[1641434399116,16.037175,3525.6,3524.5,3.32253564]
[1641434399320,1.5,3524.7,3524.5,3.32253564]
[1641434399519,0.362385,3524.6,3523.1,6.64888077]
[1641434399719,1.5,3524.2,3523.8,0.74504939]
[1641434399918,1.5,3524.2,3524.1,6.78075605]
[1641434400119,17.811974,3524.2,3524.1,7.58286087]
[1641434400319,18.041965,3524.2,3524.1,2.25551846]
[1641434400518,18.041965,3524.2,3523.9,3.99587507]
[1641434401018,1.5,3524.0,3523.9,3.99587507]
[1641434401220,14.520691,3524.0,3523.9,3.99587507]
[1641434401419,14.653085,3524.0,3523.9,7.507e-05]
[1641434401621,0.00392493,3523.9,3523.1,4.64956646]
[1641434401823,1.5,3523.2,3523.1,4.64956646]
[1641434402021,14.558691,3523.2,3523.1,4.64956646]
[1641434402222,18.568271,3523.2,3522.0,10.61343971]
[1641434402423,1.5,3522.9,3522.5,4.40143332]
[1641434402622,1.5,3522.6,3522.5,4.40143332]
[1641434402823,1.729991,3522.6,3522.5,4.40143332]
[1641434403023,1.862385,3522.6,3522.5,4.40143332]
[1641434403224,0.362385,3522.6,3522.5,4.40143332]
[1641434403523,4.00958,3523.2,3522.5,4.40143332]
[1641434403723,4.00958,3523.2,3522.5,1.00945337]
[1641434403923,4.00958,3523.2,3522.6,0.132394]
[1641434404126,2.39012351,3523.1,3522.6,0.132394]
[1641434404524,2.39012351,3523.1,3522.6,0.12846907]
[1641434406125,2.00479,3522.7,3522.6,0.12846907]
[1641434407325,0.96304279,3522.9,3522.6,0.12846907]
[1641434407927,0.96304279,3523.1,3522.6,0.12846907]
[1641434408126,0.96304279,3523.1,3523.0,2.00479]
[1641434408326,0.96304279,3523.1,3523.0,2.133259]
[1641434409229,1.28405705,3523.4,3523.0,2.133259]
[1641434409434,0.96304279,3523.7,3523.1,1.21486386]
[1641434409630,0.132394,3523.6,3523.1,1.21486386]
[1641434410229,2.00479,3523.2,3523.1,1.21486386]
[1641434410429,2.367175,3523.2,3523.1,1.21486386]
[1641434410830,2.00479,3523.2,3523.1,1.21486386]
[1641434411229,2.00479,3523.2,3523.1,1.34333286]
[1641434413132,2.00479,3523.2,3523.1,1.21486386]
[1641434413535,3.19782379,3523.2,3523.1,1.79430401]
[1641434413735,16.78687742,3523.2,3523.1,4.01e-06]
[1641434414337,15.36782379,3523.2,3523.1,4.01e-06]
[1641434414539,15.36782379,3523.2,3522.5,1.79677503]
[1641434414738,1.5,3522.6,3522.5,1.79677503]
[1641434414938,1.729991,3522.6,3522.5,1.79677503]
[1641434415138,15.31920575,3522.6,3522.5,7.503e-05]
[1641434415438,15.31920575,3522.6,3520.9,31.05065803]
[1641434415439,15.45159975,3522.6,3520.9,31.05065803]
[1641434415638,1.5,3522.1,3520.9,31.05065803]
[1641434415840,1.5,3521.4,3520.9,0.94915803]
[1641434416039,0.132394,3521.3,3520.9,0.94915803]
[1641434416240,4.00958,3521.0,3520.9,0.94915803]
[1641434416441,4.371965,3521.0,3520.9,0.94915803]
[1641434416642,16.541965,3521.0,3520.9,0.94915803]
[1641434416841,18.041965,3521.0,3520.6,0.7290361]
[1641434417043,18.041965,3521.0,3519.2,31.1119]
[1641434417044,2.91998458,3520.7,3520.1,0.9499782]
[1641434417242,1.5,3520.3,3520.1,0.9499782]
[1641434417441,0.229991,3520.2,3520.1,0.9499782]
[1641434417841,1.78256519,3520.2,3519.6,1.58193004]
[1641434418042,1.5,3519.8,3519.6,1.58193004]
[1641434418241,4.371965,3519.7,3519.6,1.58193004]
[1641434418643,17.96242156,3519.7,3518.8,0.72171819]
[1641434418843,1.5,3519.5,3518.8,0.72171819]
[1641434419143,1.5,3519.3,3518.6,4.00346378]
[1641434419343,1.420618,3519.1,3518.6,4.00346378]
[1641434419645,0.132394,3519.0,3518.3,4.40381015]
[1641434419842,0.132394,3519.0,3518.1,0.98866511]
[1641434420242,2.00479,3518.6,3518.2,1.628469]
[1641434420445,12.17,3519.8,3518.2,1.628469]
[1641434420644,12.17,3519.8,3518.2,2.468069]
[1641434420847,1.42038393,3519.7,3518.2,0.968069]
[1641434421044,32.6298,3520.2,3518.2,0.968069]
[1641434421045,32.6298,3520.2,3518.8,1.5]
[1641434421245,1.5,3520.8,3518.4,1.5]
[1641434421644,1.42006927,3520.5,3518.5,3.11764213]
[1641434422045,1.42006927,3520.5,3518.5,2.15372704]
[1641434422250,2.00479,3520.1,3519.2,2.00479]
[1641434422446,2.00479,3520.1,3519.3,0.128469]
[1641434422847,2.00479,3520.1,3519.5,1.5]
[1641434423047,2.00479,3520.1,3519.6,0.128469]
[1641434423648,2.00479,3520.1,3519.7,0.77676947]
[1641434423848,2.00479,3520.1,3519.8,0.128469]
[1641434424651,63.0048,3521.1,3519.8,0.128469]
[1641434424853,12.17,3521.9,3519.8,0.128469]
[1641434425052,1.5,3521.6,3519.8,0.128469]
[1641434425253,1.5,3521.0,3519.8,0.128469]
[1641434425452,12.17,3521.9,3519.8,0.128469]
[1641434425652,1.5,3521.6,3519.8,0.128469]
[1641434426054,0.5948,3521.5,3519.8,0.128469]
[1641434426352,2.00479,3520.2,3519.8,0.128469]
[1641434426753,2.00479,3520.2,3519.7,0.77676947]
[1641434427052,0.132394,3520.1,3519.7,0.77676947]
[1641434428253,2.00479,3519.8,3519.7,0.77676947]
[1641434428454,2.137184,3519.8,3519.7,0.77676947]
[1641434428655,2.00479,3519.8,3519.7,0.77676947]
[1641434429053,2.00479,3519.8,3519.7,0.90523847]
[1641434430057,2.00479,3519.8,3519.7,0.77676947]
[1641434431555,2.00479,3519.8,3519.7,0.90523847]
[1641434433956,2.00479,3520.2,3519.7,0.90523847]
[1641434434156,30.4532,3521.2,3520.1,1.5]
[1641434434458,2.85589,3521.3,3520.5,1.5]
[1641434434656,0.132394,3521.2,3520.6,0.128469]
[1641434435056,0.132394,3521.2,3520.7,1.12061337]
[1641434435457,1.41992812,3520.8,3520.7,1.12061337]
[1641434435656,1.78231312,3520.8,3520.7,1.12061337]
[1641434435857,1.78231312,3520.8,3520.7,1.337e-05]
[1641434436057,15.45231312,3520.8,3520.5,0.6708]
[1641434436258,2.00479,3520.6,3520.5,0.6708]
[1641434436559,2.367175,3520.6,3520.5,0.6708]
[1641434437258,17.45721201,3520.6,3520.5,0.6708]
[1641434437458,5.28721201,3520.6,3520.5,0.6708]
[1641434437659,17.45721201,3520.6,3519.0,2.00479]
[1641434437860,17.45721201,3520.6,3520.1,1.58424956]
[1641434437861,16.55951741,3520.6,3520.1,1.58424956]
[1641434438061,15.1394804,3520.6,3520.3,1.26738236]